fUST/lending_fUST_20250310
["ID","MTS","AMOUNT","RATE_DAILY","PERIOD"]
[355766913,1741546241677,-156.658377,0.00046575,120]
[355766915,1741546241686,-156.658377,0.00046575,120]
[355766917,1741546241695,-500.0,0.00046575,120]
[355766919,1741546241705,-500.0,0.00046575,120]
[355766921,1741546241715,-500.0,0.00046575,120]
[355766923,1741546241725,-151.0,0.00046575,120]
[355766925,1741546241735,-203.339887,0.00046575,120]
[355766927,1741546241744,-500.0,0.00046575,120]
[355766929,1741546241754,-513.79,0.00046575,120]
[355766931,1741546241763,-500.0,0.00046575,120]
[355766933,1741546241773,-500.0,0.00046575,120]
[355766935,1741546241786,-986.51,0.00046575,120]
[355766937,1741546241797,-198.006037,0.00046575,120]
[355766939,1741546241807,-198.006037,0.00046575,120]
[355766941,1741546241817,-198.006037,0.00046575,120]
[355766943,1741546241826,-198.006037,0.00046575,120]
[355766945,1741546241835,-198.006037,0.00046575,120]
[355766947,1741546241845,-198.006037,0.00046575,120]
[355766949,1741546241855,-198.006037,0.00046575,120]
[355766951,1741546241866,-198.006037,0.00046575,120]
[355766953,1741546241878,-500.0,0.00046575,120]
[355766954,1741546241888,-500.0,0.00046575,120]
[355766956,1741546241898,-500.0,0.00046575,120]
[355766958,1741546241908,-500.0,0.00046575,120]
[355766961,1741546241919,-3034.44,0.00046575,120]
[355766962,1741546241929,-500.0,0.00046575,120]
[355766965,1741546241939,-2276.22,0.00046575,120]
[355766967,1741546241950,-500.0,0.00046575,120]
[355766969,1741546241959,-1228.37,0.00046575,120]
[355766971,1741546241970,-500.0,0.00046575,120]
[355766973,1741546241981,-500.0,0.00046575,120]
[355766975,1741546241990,-500.0,0.00046575,120]
[355766977,1741546242001,-874.36,0.00046575,120]
[355766979,1741546242011,-500.0,0.00046575,120]
[355766981,1741546242022,-6014.96,0.00046575,120]
[355766983,1741546242035,-500.0,0.00046575,120]
[355766985,1741546242046,-500.0,0.00046575,120]
[355766987,1741546242057,-404.91802433,0.00046575,120]
[355766989,1741546242067,-819.56,0.00046575,120]
[355766991,1741546242077,-500.0,0.00046575,120]
[355766993,1741546242087,-500.0,0.00046575,120]
[355766995,1741546242097,-500.0,0.00046575,120]
[355766997,1741546242106,-500.0,0.00046575,120]
[355766999,1741546242116,-549.54,0.00046575,120]
[355767002,1741546242127,-500.0,0.00046575,120]
[355767004,1741546242137,-500.0,0.00046575,120]
[355767015,1741546242222,-500.0,0.00046575,120]
[355767017,1741546242242,-500.0,0.00046575,120]
[355767020,1741546242252,-500.0,0.00046575,120]
[355767022,1741546242262,-31371.4,0.00046575,7]
[355767025,1741546242272,-955.96,0.00046575,120]
[355767027,1741546242284,-500.0,0.00046575,120]
[355767029,1741546242293,-292.05,0.00046575,120]
[355767032,1741546242303,-3964.56,0.00046575,120]
[355767037,1741546242313,-500.0,0.00046575,120]
[355767040,1741546242323,-931.37,0.00046575,120]
[355767042,1741546242333,-1449.95,0.00046575,120]
[355767044,1741546242343,-500.0,0.00046575,120]
[355767046,1741546242353,-530.63,0.00046575,120]
[355767049,1741546242363,-681.22,0.00046575,120]
[355767052,1741546242373,-500.0,0.00046575,120]
[355767055,1741546242383,-151.0,0.00046575,120]
[355767058,1741546242392,-151.0,0.00046575,120]
[355767060,1741546242402,-151.0,0.00046575,120]
[355767062,1741546242411,-151.0,0.00046575,120]
[355767064,1741546242421,-938.04,0.00046575,120]
[355767067,1741546242431,-500.0,0.00046575,120]
[355767070,1741546242440,-500.0,0.00046575,120]
[355767073,1741546242450,-500.0,0.00046575,120]
[355767075,1741546242460,-500.0,0.00046575,120]
[355767077,1741546242470,-500.0,0.00046575,120]
[355767079,1741546242480,-834.01,0.00046575,120]
[355767081,1741546242491,-500.0,0.00046575,120]
[355767083,1741546242500,-1504.79,0.00046575,60]
[355767085,1741546242510,-500.0,0.00046575,120]
[355767087,1741546242520,-500.0,0.00046575,120]
[355767089,1741546242529,-1000.0,0.00046575,7]
[355767091,1741546242542,-500.0,0.00046575,120]
[355767093,1741546242551,-500.0,0.00046575,120]
[355767095,1741546242560,-500.0,0.00046575,120]
[355767097,1741546242570,-500.0,0.00046575,120]
[355767099,1741546242580,-500.0,0.00046575,120]
[355767101,1741546242591,-500.0,0.00046575,120]
[355767103,1741546242601,-500.0,0.00046575,120]
[355767105,1741546242611,-500.0,0.00046575,120]
[355767107,1741546242620,-500.0,0.00046575,120]
[355767109,1741546242630,-500.0,0.00046575,120]
[355767111,1741546242640,-510.66308662,0.00046575,120]
[355767113,1741546242649,-540.61023405,0.00046575,120]
[355767115,1741546242659,-500.0,0.00046575,120]
[355767117,1741546242667,-500.0,0.00046575,120]
[355767119,1741546242676,-500.0,0.00046575,120]
[355767121,1741546242687,-500.0,0.00046575,120]
[355767123,1741546242697,-500.0,0.00046575,120]
[355767126,1741546242706,-500.0,0.00046575,120]
[355767128,1741546242716,-500.0,0.00046575,120]
[355767130,1741546242726,-500.0,0.00046575,120]
[355767132,1741546242735,-500.0,0.00046575,120]
[355767134,1741546242745,-500.0,0.00046575,120]
[355767136,1741546242755,-500.0,0.00046575,120]
[355767138,1741546242763,-500.0,0.00046575,120]
[355767140,1741546242771,-500.0,0.00046575,120]
[355767142,1741546242782,-500.0,0.00046575,120]
[355767144,1741546242793,-500.0,0.00046575,120]
[355767146,1741546242802,-500.0,0.00046575,120]
[355767148,1741546242812,-500.0,0.00046575,120]
[355767150,1741546242822,-500.0,0.00046575,120]
[355767152,1741546242831,-500.0,0.00046575,120]
[355767154,1741546242842,-151.0,0.00046575,120]
[355767156,1741546242852,-1964.34,0.00046575,120]
[355767158,1741546242866,-253.938024,0.00046575,120]
[355767160,1741546242876,-500.0,0.00046575,120]
[355767162,1741546242886,-500.0,0.00046575,120]
[355767164,1741546242896,-189.409413,0.00046575,120]
[355767166,1741546242906,-189.409413,0.00046575,120]
[355767169,1741546242916,-500.0,0.00046575,120]
[355767171,1741546242926,-189.409413,0.00046575,120]
[355767173,1741546242936,-189.409413,0.00046575,120]
[355767175,1741546242944,-500.0,0.00046575,2]
[355767176,1741546242951,-500.0,0.00046575,120]
[355767179,1741546242962,-500.0,0.00046575,120]
[355767181,1741546242970,-500.0,0.00046575,120]
[355767183,1741546242979,-500.0,0.00046575,120]
[355767186,1741546242987,-189.409413,0.00046575,120]
[355767189,1741546242995,-500.0,0.00046575,120]
[355767192,1741546243003,-189.409413,0.00046575,120]
[355767194,1741546243011,-500.0,0.00046575,120]
[355767197,1741546243019,-189.409413,0.00046575,120]
[355767200,1741546243029,-500.0,0.00046575,120]
[355767203,1741546243045,-500.0,0.00046575,120]
[355767206,1741546243055,-189.409413,0.00046575,120]
[355767209,1741546243065,-500.0,0.00046575,120]
[355767212,1741546243074,-500.0,0.00046575,120]
[355767215,1741546243084,-12500.1,0.00046575,2]
[355767218,1741546243094,-500.0,0.00046575,120]
[355767221,1741546243103,-500.0,0.00046575,120]
[355767223,1741546243112,-500.0,0.00046575,120]
[355767225,1741546243121,-381.66,0.00046575,120]
[355767227,1741546243131,-500.0,0.00046575,120]
[355767229,1741546243140,-606.96,0.00046575,120]
[355767231,1741546243149,-500.0,0.00046575,120]
[355767233,1741546243158,-500.0,0.00046575,120]
[355767235,1741546243167,-625.69,0.00046575,120]
[355767237,1741546243178,-500.0,0.00046575,2]
[355767238,1741546243188,-761.13582,0.00046575,2]
[355767240,1741546243199,-150.0,0.00046575,10]
[355767242,1741546243210,-5000.0,0.00046575,10]
[355767245,1741546243220,-416.66666667,0.0004658,7]
[355767247,1741546243231,-151.0,0.000466,30]
[355767248,1741546243239,-154.22678559,0.00046603,120]
[355767250,1741546243248,-600.0,0.00046681,120]
[355767252,1741546243259,-151.0,0.000467,28]
[355767254,1741546243268,-154.22678559,0.0004674,120]
[355767256,1741546243278,-500.0,0.00046849,60]
[355767258,1741546243297,-155.60565466,0.00046849,120]
[355767261,1741546243307,-500.0,0.00046871,6]
[355767262,1741546243316,-151.0,0.000469,27]
[355767265,1741546243327,-154.22678559,0.00046932,120]
[355767267,1741546243337,-600.0,0.00046955,120]
[355767268,1741546243347,-9207.32090844,0.0004699,4]
[355767271,1741546243356,-1350.85187483,0.0004699,4]
[355767273,1741546243366,-151.0,0.00047,23]
[355767275,1741546243376,-22260.19951445,0.00047,120]
[355767277,1741546243386,-184.19347013,0.00047,120]
[355767278,1741546243396,-151.0,0.00047,23]
[355767281,1741546243406,-151.0,0.00047,120]
[355767282,1741546243416,-205.12916,0.00047,120]
[355767285,1741546243425,-151.0,0.00047,120]
[355767286,1741546243435,-151.0,0.00047,120]
[355767289,1741546243446,-800.74978285,0.00047,120]
[355767291,1741546243456,-151.0,0.00047,10]
[355767293,1741546243466,-156.658377,0.00047,120]
[355767295,1741546243476,-151.0,0.00047,120]
[355767297,1741546243486,-156.658377,0.00047,120]
[355767299,1741546243497,-151.0,0.00047,120]
[355767301,1741546243508,-189.409413,0.00047,120]
[355767303,1741546243517,-189.409413,0.00047,120]
[355767305,1741546243527,-500.0,0.00047008,6]
[355767307,1741546243541,-151.0,0.00047023,120]
[355767309,1741546243551,-179.2570724,0.00047023,33]
[355767311,1741546243560,-153.03351052,0.00047023,120]
[355767313,1741546243570,-153.03351052,0.00047023,120]
[355767315,1741546243580,-153.03351052,0.00047023,120]
[355767317,1741546243590,-153.03351052,0.00047023,120]
[355767319,1741546243600,-153.03351052,0.00047023,120]
[355767321,1741546243609,-153.03351052,0.00047023,120]
[355767323,1741546243619,-153.03351052,0.00047023,120]
[355767325,1741546243629,-153.03351052,0.00047023,120]
[355767327,1741546243639,-153.03,0.00047023,120]
[355767329,1741546243649,-160.68518605,0.00047023,120]
[355767331,1741546243658,-160.68518605,0.00047023,120]
[355767333,1741546243668,-160.68518605,0.00047023,120]
[355767335,1741546243677,-160.68518605,0.00047023,120]
[355767346,1741546243769,-160.68518605,0.00047023,120]
[355767348,1741546243779,-160.68518605,0.00047023,120]
[355767350,1741546243794,-160.68518605,0.00047023,120]
[355767352,1741546243804,-160.68518605,0.00047023,120]
[355767354,1741546243814,-160.68518605,0.00047023,120]
[355767356,1741546243824,-160.68518605,0.00047023,120]
[355767358,1741546243834,-160.68518605,0.00047023,120]
[355767360,1741546243843,-160.68518605,0.00047023,120]
[355767362,1741546243853,-160.68518605,0.00047023,120]
[355767364,1741546243863,-160.68518605,0.00047023,120]
[355767366,1741546243876,-160.68518605,0.00047023,120]
[355767368,1741546243886,-160.68518605,0.00047023,120]
[355767370,1741546243896,-600.0,0.0004704,2]
[355767372,1741546243906,-198.006037,0.00047089,120]
[355767374,1741546243916,-198.006037,0.00047089,120]
[355767376,1741546243930,-241.991159,0.00047099,120]
[355767378,1741546243940,-241.991159,0.00047099,120]
[355767380,1741546243952,-18414.6418169,0.00047099,4]
[355767382,1741546243963,-2701.70374966,0.00047099,4]
[355767384,1741546243974,-151.0,0.000471,24]
[355767386,1741546243984,-151.0,0.000471,30]
[355767388,1741546243993,-151.0,0.00047103,120]
[355767390,1741546244003,-151.0,0.00047103,120]
[355767392,1741546244012,-151.0,0.00047103,120]
[355767394,1741546244022,-151.0,0.00047103,120]
[355767397,1741546244035,-100433.5520407,0.00047109,2]
[355767399,1741546244044,-151.0,0.00047109,120]
[355767400,1741546244054,-247.850001,0.00047109,120]
[355767402,1741546244064,-151.0,0.00047109,120]
[355767405,1741546244074,-241.991159,0.00047109,120]
[355767407,1741546244084,-241.991159,0.00047109,120]
[355767409,1741546244094,-151.0,0.00047109,120]
[355767411,1741546244104,-151.0,0.00047109,120]
[355767413,1741546244114,-151.0,0.00047109,120]
[355767415,1741546244124,-156.658377,0.00047109,120]
[355767417,1741546244134,-151.0,0.00047109,120]
[355767419,1741546244145,-156.658377,0.00047109,120]
[355767421,1741546244154,-198.006037,0.00047109,120]
[355767423,1741546244163,-198.006037,0.00047109,120]
[355767425,1741546244173,-263.254045,0.00047109,120]
[355767427,1741546244182,-189.409413,0.00047109,120]
[355767429,1741546244192,-189.409407,0.00047109,120]
[355767431,1741546244202,-27621.9627253,0.00047113,4]
[355767433,1741546244212,-4052.55562449,0.00047113,4]
[355767435,1741546244222,-151.0,0.00047123,120]
[355767437,1741546244232,-172.289373,0.00047123,120]
[355767439,1741546244242,-151.0,0.00047123,120]
[355767441,1741546244252,-181.850551,0.00047123,120]
[355767443,1741546244262,-265.954804,0.00047123,120]
[355767445,1741546244272,-500.0,0.00047123,120]
[355767447,1741546244283,-500.0,0.00047123,120]
[355767449,1741546244294,-151.0,0.00047123,120]
[355767451,1741546244306,-151.0,0.00047123,120]
[355767453,1741546244317,-500.0,0.00047123,120]
[355767455,1741546244326,-581.94,0.00047123,120]
[355767457,1741546244336,-500.0,0.00047123,120]
[355767460,1741546244347,-500.0,0.00047123,120]
[355767462,1741546244359,-500.0,0.00047123,120]
[355767464,1741546244369,-610.4,0.00047123,120]
[355767466,1741546244379,-500.0,0.00047123,120]
[355767468,1741546244390,-492.86772056,0.00047123,120]
[355767470,1741546244403,-500.0,0.00047123,120]
[355767472,1741546244414,-500.0,0.00047123,120]
[355767474,1741546244425,-500.0,0.00047123,120]
[355767476,1741546244435,-241.991159,0.00047123,120]
[355767478,1741546244445,-241.991159,0.00047123,120]
[355767480,1741546244455,-500.0,0.00047123,120]
[355767482,1741546244465,-500.0,0.00047123,120]
[355767484,1741546244475,-500.0,0.00047123,120]
[355767486,1741546244485,-500.0,0.00047123,120]
[355767488,1741546244494,-500.0,0.00047123,120]
[355767490,1741546244503,-225.858434,0.00047123,120]
[355767492,1741546244514,-1000.0,0.00047123,2]
[355767494,1741546244524,-500.0,0.00047123,120]
[355767496,1741546244538,-500.0,0.00047123,2]
[355767498,1741546244556,-500.0,0.00047123,120]
[355767499,1741546244567,-500.0,0.00047123,120]
[355767500,1741546244576,-500.0,0.00047123,120]
[355767501,1741546244587,-500.0,0.00047123,120]
[355767502,1741546244596,-500.0,0.00047123,120]
[355767503,1741546244608,-577.16,0.00047123,120]
[355767504,1741546244618,-500.0,0.00047123,120]
[355767505,1741546244628,-500.0,0.00047123,120]
[355767506,1741546244639,-500.0,0.00047123,15]
[355767507,1741546244648,-500.0,0.00047123,120]
[355767508,1741546244658,-526.33,0.00047123,120]
[355767509,1741546244669,-500.0,0.00047123,120]
[355767510,1741546244679,-1300.38,0.00047123,2]
[355767511,1741546244688,-500.0,0.00047123,120]
[355767512,1741546244698,-1149.21,0.00047123,120]
[355767513,1741546244708,-500.0,0.00047123,120]
[355767514,1741546244719,-2466.6,0.00047123,120]
[355767515,1741546244729,-526.27249081,0.00047123,120]
[355767516,1741546244739,-500.0,0.00047123,120]
[355767518,1741546244748,-500.0,0.00047123,120]
[355767520,1741546244758,-500.0,0.00047123,120]
[355767522,1741546244767,-500.0,0.00047123,120]
[355767524,1741546244776,-488.01069444,0.00047123,120]
[355767526,1741546244789,-545.30701607,0.00047123,120]
[355767528,1741546244799,-500.0,0.00047123,120]
[355767530,1741546244810,-500.0,0.00047123,60]
[355767532,1741546244819,-266.28231845,0.00047123,120]
[355767534,1741546244829,-500.0,0.00047123,120]
[355767536,1741546244838,-500.0,0.00047123,120]
[355767538,1741546244848,-500.0,0.00047123,120]
[355767540,1741546244858,-500.0,0.00047123,120]
[355767542,1741546244872,-500.0,0.00047123,120]
[355767544,1741546244881,-500.0,0.00047123,120]
[355767546,1741546244891,-500.0,0.00047123,120]
[355767548,1741546244902,-500.0,0.00047123,120]
[355767550,1741546244911,-156.658377,0.00047123,120]
[355767552,1741546244921,-151.0,0.00047123,120]
[355767554,1741546244931,-500.0,0.00047123,120]
[355767556,1741546244940,-156.658386,0.00047123,120]
[355767558,1741546244952,-500.0,0.00047123,120]
[355767560,1741546244961,-500.0,0.00047123,120]
[355767562,1741546244972,-513.79,0.00047123,120]
[355767564,1741546244981,-500.0,0.00047123,120]
[355767566,1741546244991,-500.0,0.00047123,120]
[355767568,1741546245001,-986.51,0.00047123,120]
[355767570,1741546245012,-198.006037,0.00047123,120]
[355767572,1741546245024,-198.006044,0.00047123,120]
[355767574,1741546245038,-500.0,0.00047123,120]
[355767576,1741546245048,-500.0,0.00047123,120]
[355767578,1741546245058,-500.0,0.00047123,120]
[355767580,1741546245068,-3034.44,0.00047123,120]
[355767582,1741546245077,-2276.22,0.00047123,120]
[355767584,1741546245086,-500.0,0.00047123,120]
[355767586,1741546245095,-528.94134562,0.00047123,120]
[355767588,1741546245104,-874.36,0.00047123,120]
[355767590,1741546245114,-6014.96,0.00047123,120]
[355767592,1741546245123,-819.56,0.00047123,120]
[355767594,1741546245133,-500.0,0.00047123,120]
[355767596,1741546245142,-500.0,0.00047123,120]
[355767607,1741546245224,-500.0,0.00047123,120]
[355767609,1741546245244,-549.54,0.00047123,120]
[355767611,1741546245253,-500.0,0.00047123,120]
[355767613,1741546245263,-500.0,0.00047123,120]
[355767615,1741546245272,-500.0,0.00047123,120]
[355767617,1741546245281,-500.0,0.00047123,120]
[355767619,1741546245294,-31371.4,0.00047123,7]
[355767621,1741546245304,-955.96,0.00047123,120]
[355767623,1741546245313,-3964.56,0.00047123,120]
[355767625,1741546245323,-500.0,0.00047123,120]
[355767627,1741546245333,-931.37,0.00047123,120]
[355767629,1741546245343,-1449.95,0.00047123,120]
[355767631,1741546245353,-530.63,0.00047123,120]
[355767633,1741546245363,-681.22,0.00047123,120]
[355767635,1741546245372,-500.0,0.00047123,120]
[355767637,1741546245382,-938.04,0.00047123,120]
[355767639,1741546245392,-500.0,0.00047123,120]
[355767641,1741546245402,-500.0,0.00047123,120]
[355767643,1741546245412,-270.74922255,0.00047123,120]
[355767645,1741546245422,-834.01,0.00047123,120]
[355767647,1741546245432,-500.0,0.00047123,120]
[355767649,1741546245442,-1504.79,0.00047123,60]
[355767651,1741546245451,-500.0,0.00047123,120]
[355767653,1741546245461,-1000.0,0.00047123,7]
[355767655,1741546245471,-500.0,0.00047123,120]
[355767657,1741546245482,-500.0,0.00047123,120]
[355767659,1741546245492,-500.0,0.00047123,120]
[355767661,1741546245502,-500.0,0.00047123,120]
[355767663,1741546245512,-500.0,0.00047123,120]
[355767665,1741546245522,-500.0,0.00047123,120]
[355767667,1741546245532,-500.0,0.00047123,120]
[355767669,1741546245544,-500.0,0.00047123,120]
[355767671,1741546245554,-500.0,0.00047123,120]
[355767673,1741546245564,-500.0,0.00047123,120]
[355767675,1741546245574,-500.0,0.00047123,120]
[355767677,1741546245584,-500.0,0.00047123,120]
[355767679,1741546245595,-500.0,0.00047123,120]
[355767681,1741546245604,-500.0,0.00047123,120]
[355767683,1741546245615,-500.0,0.00047123,120]
[355767685,1741546245625,-500.0,0.00047123,120]
[355767687,1741546245635,-500.0,0.00047123,120]
[355767689,1741546245645,-500.0,0.00047123,120]
[355767691,1741546245655,-500.0,0.00047123,120]
[355767693,1741546245665,-500.0,0.00047123,120]
[355767695,1741546245675,-500.0,0.00047123,120]
[355767697,1741546245685,-500.0,0.00047123,120]
[355767699,1741546245695,-500.0,0.00047123,120]
[355767701,1741546245704,-1964.34,0.00047123,120]
[355767703,1741546245714,-500.0,0.00047123,120]
[355767705,1741546245724,-500.0,0.00047123,120]
[355767707,1741546245734,-500.0,0.00047123,2]
[355767709,1741546245744,-436.34060386,0.00047123,120]
[355767711,1741546245754,-12500.1,0.00047123,2]
[355767713,1741546245764,-606.96,0.00047123,120]
[355767715,1741546245775,-473.17060065,0.00047123,120]
[355767718,1741546245788,-499.97,0.00047123,120]
[355767719,1741546245797,-625.69,0.00047123,120]
[355767721,1741546245807,-331.48026065,0.00047123,10]
[355767723,1741546245817,-500.0,0.00047145,6]
[355767725,1741546245827,-519.97473805,0.00047173,10]
[355767727,1741546245837,-150.0,0.00047173,10]
[355767730,1741546245846,-151.0,0.000472,26]
[355767731,1741546245856,-600.0,0.00047229,120]
[355767733,1741546245867,-154.22678559,0.00047233,120]
[355767736,1741546245880,-500.0,0.00047282,6]
[355767737,1741546245889,-154.22678559,0.00047288,120]
[355767740,1741546245901,-151.0,0.000473,29]
[355767742,1741546245910,-500.0,0.00047397,60]
[355767744,1741546245921,-577.19,0.000474,30]
[355767746,1741546245931,-500.0,0.00047419,6]
[355767748,1741546245942,-160.68518605,0.00047433,120]
[355767750,1741546245953,-736.90153981,0.00047454,28]
[355767752,1741546245963,-155.60565466,0.00047479,120]
[355767754,1741546245974,-151.0,0.000475,22]
[355767756,1741546245984,-600.0,0.00047503,120]
[355767758,1741546245993,-600.0,0.0004753,2]
[355767760,1741546246003,-1043.0,0.00047547,48]
[355767762,1741546246013,-500.0,0.00047556,6]
[355767764,1741546246022,-761.13582,0.00047573,2]
[355767765,1741546246032,-151.0,0.000476,23]
[355767768,1741546246045,-154.22678559,0.00047644,120]
[355767770,1741546246055,-532.09,0.00047645,9]
[355767772,1741546246064,-2701.70374966,0.00047661,4]
[355767773,1741546246074,-183.67918624,0.00047671,120]
[355767776,1741546246084,-500.0,0.00047671,120]
[355767777,1741546246094,-581.94,0.00047671,120]
[355767780,1741546246104,-500.0,0.00047671,120]
[355767781,1741546246114,-500.0,0.00047671,120]
[355767783,1741546246123,-610.4,0.00047671,120]
[355767785,1741546246134,-500.0,0.00047671,120]
[355767787,1741546246144,-500.0,0.00047671,120]
[355767789,1741546246154,-500.0,0.00047671,120]
[355767792,1741546246163,-1000.0,0.00047671,2]
[355767793,1741546246173,-500.0,0.00047671,2]
[355767796,1741546246183,-500.0,0.00047671,120]
[355767798,1741546246193,-500.0,0.00047671,120]
[355767799,1741546246203,-500.0,0.00047671,120]
[355767802,1741546246213,-500.0,0.00047671,120]
[355767804,1741546246224,-577.16,0.00047671,120]
[355767806,1741546246233,-500.0,0.00047671,120]
[355767808,1741546246243,-500.0,0.00047671,15]
[355767809,1741546246253,-500.0,0.00047671,120]
[355767811,1741546246263,-526.33,0.00047671,120]
[355767813,1741546246273,-234.0763462,0.00047671,120]
[355767815,1741546246283,-1300.38,0.00047671,2]
[355767817,1741546246295,-500.0,0.00047671,120]
[355767819,1741546246304,-1149.21,0.00047671,120]
[355767821,1741546246314,-500.0,0.00047671,120]
[355767823,1741546246323,-2466.6,0.00047671,120]
[355767825,1741546246334,-500.0,0.00047671,120]
[355767827,1741546246343,-500.0,0.00047671,120]
[355767829,1741546246353,-500.0,0.00047671,120]
[355767831,1741546246363,-477.40270064,0.00047671,120]
[355767833,1741546246373,-500.0,0.00047671,60]
[355767835,1741546246382,-500.0,0.00047671,120]
[355767837,1741546246392,-500.0,0.00047671,120]
[355767839,1741546246403,-548.49551341,0.00047671,120]
[355767841,1741546246414,-456.60494672,0.00047671,120]
[355767843,1741546246423,-500.0,0.00047671,120]
[355767845,1741546246433,-500.0,0.00047671,120]
[355767847,1741546246442,-500.0,0.00047671,120]
[355767849,1741546246451,-500.0,0.00047671,120]
[355767851,1741546246460,-513.79,0.00047671,120]
[355767853,1741546246470,-500.0,0.00047671,120]
[355767862,1741546246545,-500.0,0.00047671,120]
[355767864,1741546246562,-986.51,0.00047671,120]
[355767866,1741546246572,-500.0,0.00047671,120]
[355767869,1741546246581,-500.0,0.00047671,120]
[355767870,1741546246591,-500.0,0.00047671,120]
[355767873,1741546246602,-3034.44,0.00047671,120]
[355767875,1741546246612,-2276.22,0.00047671,120]
[355767877,1741546246621,-500.0,0.00047671,120]
[355767879,1741546246632,-1228.37,0.00047671,120]
[355767881,1741546246642,-874.36,0.00047671,120]
[355767883,1741546246652,-6014.96,0.00047671,120]
[355767885,1741546246662,-819.56,0.00047671,120]
[355767887,1741546246671,-500.0,0.00047671,120]
[355767889,1741546246682,-500.0,0.00047671,120]
[355767891,1741546246691,-549.54,0.00047671,120]
[355767893,1741546246701,-500.0,0.00047671,120]
[355767895,1741546246710,-500.0,0.00047671,120]
[355767897,1741546246720,-31371.4,0.00047671,7]
[355767899,1741546246730,-955.96,0.00047671,120]
[355767901,1741546246739,-3964.56,0.00047671,120]
[355767903,1741546246749,-500.0,0.00047671,120]
[355767905,1741546246760,-931.37,0.00047671,120]
[355767907,1741546246770,-1449.95,0.00047671,120]
[355767909,1741546246780,-530.63,0.00047671,120]
[355767911,1741546246792,-681.22,0.00047671,120]
[355767913,1741546246801,-500.0,0.00047671,120]
[355767915,1741546246811,-938.04,0.00047671,120]
[355767917,1741546246820,-500.0,0.00047671,120]
[355767919,1741546246830,-500.0,0.00047671,120]
[355767921,1741546246839,-834.01,0.00047671,120]
[355767923,1741546246848,-500.0,0.00047671,120]
[355767925,1741546246859,-1504.79,0.00047671,60]
[355767927,1741546246871,-500.0,0.00047671,120]
[355767929,1741546246882,-334.31,0.00047671,7]
[355767931,1741546246891,-500.0,0.00047671,120]
[355767933,1741546246903,-500.0,0.00047671,120]
[355767935,1741546246914,-500.0,0.00047671,120]
[355767937,1741546246925,-500.0,0.00047671,120]
[355767939,1741546246935,-500.0,0.00047671,120]
[355767941,1741546246946,-500.0,0.00047671,120]
[355767943,1741546246957,-500.0,0.00047671,120]
[355767945,1741546246968,-500.0,0.00047671,120]
[355767947,1741546246978,-500.0,0.00047671,120]
[355767949,1741546246988,-500.0,0.00047671,120]
[355767951,1741546246999,-500.0,0.00047671,120]
[355767953,1741546247008,-500.0,0.00047671,120]
[355767955,1741546247018,-500.0,0.00047671,120]
[355767957,1741546247028,-500.0,0.00047671,120]
[355767960,1741546247043,-500.0,0.00047671,120]